fUST/lending_fUST_20251004
["ID","MTS","AMOUNT","RATE_DAILY","PERIOD"]
[388943602,1759527059548,-251.56,0.00030136,16]
[388943603,1759527059559,-1340.1,0.00030136,16]
[388943604,1759527059569,-724.58,0.00030136,16]
[388943605,1759527059578,-251.56,0.00030136,16]
[388943606,1759527059587,-1340.1,0.00030136,16]
[388943607,1759527059599,-724.58,0.00030136,16]
[388943608,1759527059608,-251.56,0.00030136,16]
[388943609,1759527059618,-1340.1,0.00030136,16]
[388943610,1759527059627,-724.58,0.00030136,16]
[388943611,1759527059637,-251.56,0.00030136,16]
[388943612,1759527059647,-1340.1,0.00030136,16]
[388943613,1759527059656,-724.58,0.00030136,16]
[388943614,1759527059666,-251.56,0.00030136,16]
[388943615,1759527059679,-724.58,0.00030136,16]
[388943616,1759527059690,-251.56,0.00030136,16]
[388943617,1759527059699,-251.56,0.00030136,16]
[388943618,1759527059708,-724.58,0.00030136,16]
[388943619,1759527059717,-1340.1,0.00030136,16]
[388943620,1759527059727,-500.0,0.00030136,16]
[388943621,1759527059737,-1340.1,0.00030136,16]
[388943622,1759527059746,-251.56,0.00030136,16]
[388943623,1759527059755,-724.58,0.00030136,16]
[388943624,1759527059764,-500.0,0.00030136,16]
[388943625,1759527059774,-1340.1,0.00030136,16]
[388943626,1759527059783,-251.56,0.00030136,16]
[388943627,1759527059794,-724.58,0.00030136,16]
[388943628,1759527059803,-500.0,0.00030136,16]
[388943629,1759527059813,-1340.1,0.00030136,16]
[388943630,1759527059823,-251.56,0.00030136,16]
[388943631,1759527059832,-724.58541812,0.00030136,16]
[388943632,1759527059842,-500.0,0.00030136,16]
[388943633,1759527059852,-1340.1,0.00030136,16]
[388943634,1759527059862,-251.56,0.00030136,16]
[388943635,1759527059872,-1340.1,0.00030136,16]
[388943636,1759527059881,-251.56,0.00030136,16]
[388943637,1759527059891,-1340.1,0.00030136,16]
[388943638,1759527059900,-251.56,0.00030136,16]
[388943639,1759527059910,-1340.32971885,0.00030136,16]
[388943640,1759527059919,-251.56,0.00030136,16]
[388943641,1759527059929,-500.0,0.00030136,16]
[388943642,1759527059938,-251.56,0.00030136,16]
[388943643,1759527059947,-500.0,0.00030136,16]
[388943644,1759527059956,-251.56,0.00030136,16]
[388943645,1759527059965,-500.0,0.00030136,16]
[388943646,1759527059975,-500.0,0.00030136,16]
[388943647,1759527059985,-500.0,0.00030136,16]
[388943648,1759527059994,-251.56,0.00030136,16]
[388943649,1759527060003,-1210.23,0.00030136,16]
[388943650,1759527060012,-500.0,0.00030136,16]
[388943651,1759527060022,-397.72481558,0.00030136,16]
[388943652,1759527060031,-251.58709083,0.00030136,16]
[388943653,1759527060042,-1210.23,0.00030136,16]
[388943654,1759527060052,-500.0,0.00030136,16]
[388943655,1759527060061,-1210.23,0.00030136,16]
[388943656,1759527060071,-500.0,0.00030136,16]
[388943657,1759527060080,-1210.23,0.00030136,16]
[388943658,1759527060090,-500.0,0.00030136,16]
[388943659,1759527060100,-500.0,0.00030136,16]
[388943660,1759527060109,-1210.23,0.00030136,16]
[388943661,1759527060118,-500.0,0.00030136,16]
[388943662,1759527060236,-500.0,0.00030136,16]
[388943663,1759527060255,-577.25,0.00030136,16]
[388943664,1759527060266,-1210.23,0.00030136,16]
[388943665,1759527060276,-500.0,0.00030136,16]
[388943666,1759527060285,-1210.23,0.00030136,16]
[388943667,1759527060295,-500.0,0.00030136,16]
[388943668,1759527060305,-1210.23,0.00030136,16]
[388943669,1759527060315,-400.28530883,0.00030136,16]
[388943670,1759527060324,-500.0,0.00030136,16]
[388943671,1759527060334,-484.38140373,0.00030136,16]
[388943672,1759527060345,-1210.23,0.00030136,16]
[388943673,1759527060355,-500.0,0.00030136,16]
[388943674,1759527060364,-1210.23,0.00030136,16]
[388943675,1759527060374,-500.0,0.00030136,16]
[388943676,1759527060384,-1210.23,0.00030136,16]
[388943677,1759527060394,-500.0,0.00030136,16]
[388943678,1759527060403,-1210.23,0.00030136,16]
[388943679,1759527060413,-1210.23,0.00030136,16]
[388943680,1759527060423,-500.0,0.00030136,16]
[388943681,1759527060432,-500.0,0.00030136,16]
[388943682,1759527060443,-1210.23,0.00030136,16]
[388943683,1759527060453,-500.0,0.00030136,16]
[388943684,1759527060462,-1210.23,0.00030136,16]
[388943685,1759527060472,-500.0,0.00030136,16]
[388943686,1759527060482,-1210.23,0.00030136,16]
[388943687,1759527060492,-1408.52,0.00030136,16]
[388943688,1759527060502,-500.0,0.00030136,7]
[388943689,1759527060511,-480.0,0.00030136,16]
[388943690,1759527060526,-1210.23,0.00030136,16]
[388943691,1759527060536,-1408.52,0.00030136,16]
[388943692,1759527060545,-500.0,0.00030136,7]
[388943693,1759527060555,-1210.23,0.00030136,16]
[388943694,1759527060565,-1408.52,0.00030136,16]
[388943695,1759527060575,-500.0,0.00030136,7]
[388943696,1759527060585,-1210.23,0.00030136,16]
[388943697,1759527060595,-1408.52,0.00030136,16]
[388943698,1759527060604,-500.0,0.00030136,7]
[388943699,1759527060614,-1210.23,0.00030136,16]
[388943700,1759527060623,-1408.52,0.00030136,16]
[388943701,1759527060633,-500.0,0.00030136,7]
[388943702,1759527060643,-1210.23,0.00030136,16]
[388943703,1759527060653,-1408.52,0.00030136,16]
[388943704,1759527060663,-500.0,0.00030136,7]
[388943705,1759527060673,-1210.23,0.00030136,16]
[388943706,1759527060682,-1408.52,0.00030136,16]
[388943707,1759527060692,-500.0,0.00030136,7]
[388943708,1759527060702,-1210.23,0.00030136,16]
[388943709,1759527060712,-1408.52,0.00030136,16]
[388943710,1759527060722,-500.0,0.00030136,7]
[388943711,1759527060731,-1210.43409946,0.00030136,16]
[388943712,1759527060740,-1408.52,0.00030136,16]
[388943713,1759527060750,-500.0,0.00030136,7]
[388943714,1759527060759,-1408.52,0.00030136,16]
[388943715,1759527060768,-500.0,0.00030136,7]
[388943716,1759527060778,-1408.52,0.00030136,16]
[388943717,1759527060788,-500.0,0.00030136,7]
[388943718,1759527060798,-1408.52,0.00030136,16]
[388943719,1759527060807,-500.0,0.00030136,7]
[388943720,1759527060816,-1408.52,0.00030136,16]
[388943721,1759527060826,-379.04970708,0.00030136,7]
[388943722,1759527060835,-1408.52,0.00030136,16]
[388943723,1759527060845,-1408.52,0.00030136,16]
[388943724,1759527060854,-1408.52,0.00030136,16]
[388943725,1759527060864,-1408.52,0.00030136,16]
[388943726,1759527060873,-1408.52,0.00030136,16]
[388943727,1759527060883,-536.53,0.00030136,16]
[388943728,1759527060892,-1408.52,0.00030136,16]
[388943729,1759527060902,-536.53,0.00030136,16]
[388943730,1759527060911,-1408.52,0.00030136,16]
[388943731,1759527060921,-536.53,0.00030136,16]
[388943732,1759527060931,-1408.52,0.00030136,16]
[388943733,1759527060940,-536.53,0.00030136,16]
[388943734,1759527060949,-1408.52,0.00030136,16]
[388943735,1759527060960,-1408.52,0.00030136,16]
[388943736,1759527060969,-536.53,0.00030136,16]
[388943737,1759527060979,-536.53,0.00030136,16]
[388943738,1759527060989,-1408.62002245,0.00030136,16]
[388943739,1759527060998,-536.53,0.00030136,16]
[388943740,1759527061008,-536.53,0.00030136,16]
[388943741,1759527061017,-536.53,0.00030136,16]
[388943742,1759527061028,-536.53,0.00030136,16]
[388943743,1759527061038,-536.53,0.00030136,16]
[388943744,1759527061048,-536.53,0.00030136,16]
[388943745,1759527061057,-536.53,0.00030136,16]
[388943746,1759527061067,-536.53,0.00030136,16]
[388943747,1759527061076,-536.53,0.00030136,16]
[388943748,1759527061085,-536.53,0.00030136,16]
[388943749,1759527061095,-536.53,0.00030136,16]
[388943750,1759527061104,-536.53,0.00030136,16]
[388943751,1759527061112,-536.53,0.00030136,16]
[388943752,1759527061122,-536.53,0.00030136,16]
[388943753,1759527061142,-536.53,0.00030136,16]
[388943754,1759527061164,-536.53,0.00030136,16]
[388943755,1759527061182,-536.53,0.00030136,16]
[388943756,1759527061199,-536.69679086,0.00030136,16]
[388943757,1759527061218,-500.0,0.00030136,16]
[388943759,1759527061238,-500.0,0.00030136,16]
[388943760,1759527061255,-500.0,0.00030136,16]
[388943761,1759527061271,-500.0,0.00030136,16]
[388943762,1759527061292,-500.0,0.00030136,16]
[388943763,1759527061306,-500.0,0.00030136,16]
[388943764,1759527061321,-500.0,0.00030136,16]
[388943765,1759527061337,-500.0,0.00030136,16]
[388943766,1759527061355,-500.0,0.00030136,16]
[388943767,1759527061373,-500.0,0.00030136,16]
[388943768,1759527061386,-500.0,0.00030136,16]
[388943769,1759527061399,-500.0,0.00030136,16]
[388943770,1759527061416,-500.0,0.00030136,16]
[388943771,1759527061429,-500.0,0.00030136,16]
[388943772,1759527061446,-449.69617787,0.00030136,16]
[388943773,1759527061458,-500.0,0.00030136,16]
[388943774,1759527061475,-500.0,0.00030136,16]
[388943775,1759527061492,-460.0,0.00030136,16]
[388943776,1759527061509,-500.0,0.00030136,16]
[388943777,1759527061529,-500.0,0.00030136,16]
[388943778,1759527061544,-500.0,0.00030136,16]
[388943779,1759527061560,-500.0,0.00030136,16]
[388943780,1759527061575,-500.0,0.00030136,16]
[388943781,1759527061591,-500.0,0.00030136,16]
[388943782,1759527061606,-460.0,0.00030136,16]
[388943783,1759527061620,-500.60466772,0.00030136,16]
[388943784,1759527061634,-500.0,0.00030136,16]
[388943785,1759527061647,-500.0,0.00030136,16]
[388943786,1759527061661,-500.0,0.00030136,16]
[388943787,1759527061675,-500.0,0.00030136,16]
[388943788,1759527061689,-500.0,0.00030136,16]
[388943789,1759527061702,-500.0,0.00030136,2]
[388943790,1759527061716,-500.0,0.00030136,16]
[388943791,1759527061729,-500.0,0.00030136,2]
[388943792,1759527061742,-500.0,0.00030136,16]
[388943793,1759527061755,-500.0,0.00030136,2]
[388943794,1759527061768,-500.0,0.00030136,16]
[388943795,1759527061782,-500.0,0.00030136,16]
[388943796,1759527061796,-500.0,0.00030136,16]
[388943797,1759527061809,-638.85145043,0.00030136,16]
[388943798,1759527061822,-500.0,0.00030136,16]
[388943799,1759527061837,-500.0,0.00030136,16]
[388943800,1759527061851,-500.0,0.00030136,16]
[388943801,1759527061866,-500.0,0.00030136,16]
[388943802,1759527061879,-500.0,0.00030136,16]
[388943803,1759527061894,-500.0,0.00030136,16]
[388943804,1759527061908,-500.0,0.00030136,16]
[388943805,1759527061922,-500.0,0.00030136,16]
[388943806,1759527061936,-500.0,0.00030136,16]
[388943807,1759527061951,-500.0,0.00030136,16]
[388943808,1759527061965,-500.0,0.00030136,16]
[388943809,1759527061979,-500.0,0.00030136,16]
[388943810,1759527061994,-500.0,0.00030136,16]
[388943811,1759527062008,-500.0,0.00030136,16]
[388943812,1759527062021,-614.04666891,0.00030136,16]
[388943813,1759527062036,-500.0,0.00030136,16]
[388943814,1759527062051,-500.0,0.00030136,16]
[388943815,1759527062064,-500.0,0.00030136,16]
[388943816,1759527062079,-500.0,0.00030136,16]
[388943817,1759527062093,-500.0,0.00030136,16]
[388943818,1759527062106,-500.0,0.00030136,16]
[388943819,1759527062120,-500.0,0.00030136,16]
[388943820,1759527062133,-500.0,0.00030136,16]
[388943821,1759527062146,-500.0,0.00030136,16]
[388943822,1759527062160,-498.87513143,0.00030136,16]
[388943823,1759527062174,-500.0,0.00030136,16]
[388943824,1759527062187,-500.0,0.00030136,16]
[388943825,1759527062201,-500.0,0.00030136,16]
[388943826,1759527062214,-500.0,0.00030136,16]
[388943827,1759527062227,-500.0,0.00030136,16]
[388943828,1759527062241,-500.0,0.00030136,16]
[388943829,1759527062252,-500.0,0.00030136,16]
[388943830,1759527062261,-500.0,0.00030136,16]
[388943831,1759527062272,-500.0,0.00030136,16]
[388943832,1759527062282,-500.0,0.00030136,16]
[388943833,1759527062292,-500.0,0.00030136,16]
[388943834,1759527062302,-500.0,0.00030136,16]
[388943835,1759527062312,-500.0,0.00030136,16]
[388943836,1759527062323,-500.0,0.00030136,16]
[388943837,1759527062334,-512.05,0.00030136,16]
[388943838,1759527062345,-565.79,0.00030136,16]
[388943839,1759527062355,-565.79,0.00030136,16]
[388943840,1759527062364,-565.79,0.00030136,16]
[388943841,1759527062578,-565.79,0.00030136,16]
[388943842,1759527062602,-565.79,0.00030136,16]
[388943843,1759527062612,-565.79,0.00030136,16]
[388943844,1759527062621,-565.79,0.00030136,16]
[388943845,1759527062631,-565.79,0.00030136,16]
[388943846,1759527062640,-500.0,0.00030136,16]
[388943847,1759527062650,-565.79,0.00030136,16]
[388943848,1759527062658,-500.0,0.00030136,16]
[388943849,1759527062667,-565.79,0.00030136,16]
[388943850,1759527062676,-500.0,0.00030136,16]
[388943851,1759527062684,-565.79,0.00030136,16]
[388943852,1759527062693,-500.0,0.00030136,16]
[388943853,1759527062703,-565.79,0.00030136,16]
[388943854,1759527062712,-500.0,0.00030136,16]
[388943855,1759527062722,-565.79,0.00030136,16]
[388943856,1759527062730,-500.0,0.00030136,16]
[388943857,1759527062739,-565.79,0.00030136,16]
[388943858,1759527062748,-500.0,0.00030136,16]
[388943859,1759527062758,-565.79,0.00030136,16]
[388943860,1759527062768,-430.2984258,0.00030136,16]
[388943861,1759527062778,-565.79,0.00030136,16]
[388943862,1759527062787,-565.79,0.00030136,16]
[388943863,1759527062798,-565.79,0.00030136,16]
[388943864,1759527062807,-565.79,0.00030136,16]
[388943865,1759527062816,-565.79,0.00030136,16]
[388943866,1759527062826,-565.79,0.00030136,16]
[388943867,1759527062835,-565.79,0.00030136,16]
[388943868,1759527062844,-565.79,0.00030136,16]
[388943869,1759527062853,-565.89923244,0.00030136,16]
[388943870,1759527062863,-316.72774007,0.00030136,16]
[388943871,1759527062871,-500.0,0.00030136,16]
[388943872,1759527062881,-500.0,0.00030136,16]
[388943873,1759527062890,-500.0,0.00030136,16]
[388943874,1759527062899,-500.0,0.00030136,16]
[388943875,1759527062908,-500.0,0.00030136,16]
[388943876,1759527062918,-500.0,0.00030136,16]
[388943877,1759527062927,-173.20702182,0.00030136,16]
[388943878,1759527062936,-500.0,0.00030136,16]
[388943879,1759527062945,-500.0,0.00030136,16]
[388943880,1759527062955,-500.0,0.00030136,16]
[388943881,1759527062965,-500.0,0.00030136,16]
[388943882,1759527062974,-500.0,0.00030136,16]
[388943883,1759527062985,-500.0,0.00030136,16]
[388943884,1759527062995,-500.0,0.00030136,16]
[388943885,1759527063005,-500.0,0.00030136,16]
[388943886,1759527063014,-500.0,0.00030136,16]
[388943887,1759527063023,-500.0,0.00030136,16]
[388943888,1759527063032,-590.41288824,0.00030136,16]
[388943889,1759527063041,-412.74511527,0.00030136,16]
[388943890,1759527063051,-500.0,0.00030136,16]
[388943891,1759527063060,-500.0,0.00030136,16]
[388943892,1759527063069,-500.0,0.00030136,16]
[388943893,1759527063078,-500.0,0.00030136,16]
[388943894,1759527063088,-451.69165458,0.00030136,16]
[388943895,1759527064094,-598.95834542,0.00030136,16]
[388943896,1759527064103,-46.38165446,0.00030136,16]
[388943967,1759527901069,1000.0,0.00028767,120]
[388943968,1759527909879,1004.0,0.00028767,120]
[388943991,1759527937690,1000.0,0.00028767,120]
[388944001,1759527958414,1000.0,0.00028767,120]
[388944082,1759528173527,21597.3348172,0.00028767,120]
[388944121,1759528232213,-944.41634822,0.00020387,2]
[388944122,1759528232276,-4055.58365178,0.00020387,2]
[388944123,1759528232286,-3536.94312771,0.00020593,2]
[388944124,1759528232295,-1041.66666667,0.00023,2]
[388944125,1759528232304,-234.04758945,0.000237,2]
[388944128,1759528232313,-208.87019239,0.00026293,2]
[388944186,1759528238177,-5000.0,0.0002277,2]
[388944189,1759528238187,-160.0,0.00023,2]
[388944190,1759528238197,-513.67834461,0.00026293,2]
[388944192,1759528238206,-4753.29517574,0.00026388,2]
[388944329,1759528243219,-563.21139385,0.00026388,2]
[388944330,1759528243277,-9217.91859128,0.00026388,2]
[388944386,1759528246125,-8465.1392054,0.00026388,2]
[388944387,1759528246184,-633.58345053,0.00026388,2]
[388944388,1759528246194,-500.0,0.00028057,7]
[388944389,1759528246203,-500.0,0.0002866,2]
[388944390,1759528246213,-157.33484041,0.0002866,2]
[388944391,1759528246223,-500.0,0.0002866,2]
[388944392,1759528246232,-500.0,0.0002866,2]
[388944393,1759528246242,-500.0,0.0002866,2]
[388944394,1759528246251,-500.0,0.0002866,2]
[388944395,1759528246260,-197.2284059,0.0002866,2]
[388944396,1759528246270,-500.0,0.0002866,2]
[388944397,1759528246279,-500.0,0.0002866,2]
[388944398,1759528246288,-500.0,0.0002866,2]
[388944399,1759528246297,-500.0,0.0002866,2]
[388944401,1759528246306,-500.0,0.0002866,2]
[388944402,1759528246315,-342.70454174,0.0002866,2]
[388944403,1759528246326,-157.29545826,0.0002866,2]
[388944404,1759528246335,-500.0,0.0002866,2]
[388944405,1759528246344,-500.0,0.0002866,2]
[388944406,1759528246353,-500.0,0.0002866,2]
[388944407,1759528246362,-339.20454174,0.0002866,2]
[388944408,1759528246374,-160.79545826,0.0002866,2]
[388944409,1759528246383,-500.0,0.0002866,2]
[388944410,1759528246392,-4.84133485,0.0002866,2]
[388944428,1759528304989,358.943391,0.00016438,2]
[388944436,1759528888202,500.0,0.00018026,2]
[388944437,1759528892975,500.0,0.00018026,2]
[388944438,1759528897700,500.0,0.00018026,2]
[388944439,1759528902807,501.46477237,0.00018026,2]
[388944491,1759529261779,161.78534752,0.00016,2]
[388944515,1759529432399,-5000.0,0.00018554,2]
[388944517,1759529432409,-500.0,0.00018741,2]
[388944519,1759529432417,-320.0,0.00019728,2]
[388944526,1759529432488,-180.0,0.00019728,2]
[388944528,1759529432497,-500.0,0.00020766,2]
[388944530,1759529432508,-500.0,0.00021859,2]
[388944533,1759529432517,-358.943391,0.00022783,2]
[388944536,1759529432527,-500.0,0.00023009,2]
[388944539,1759529432537,-1200.0,0.00023714,2]
[388944542,1759529432547,-160.0,0.00023715,2]
[388944545,1759529432556,-500.0,0.0002422,2]
[388944548,1759529432565,-1041.66666667,0.0002489,2]
[388944552,1759529432574,-300.0,0.00024892,2]
[388944554,1759529432583,-300.0,0.00024893,2]
[388944557,1759529432592,-300.0,0.00024893,2]
[388944560,1759529432601,-300.0,0.00024893,2]
[388944563,1759529432610,-1200.0,0.00024902,2]
[388944566,1759529432619,-234.04758945,0.00024915,2]
[388944569,1759529432628,-500.0,0.00025495,2]
[388944572,1759529432637,-500.0,0.0002677,2]
[388944575,1759529432645,-630.0,0.00028019,2]
[388944578,1759529432654,-2157.0,0.00028019,2]
[388944581,1759529432663,-500.0,0.00028108,5]
[388944584,1759529432673,-394.550624,0.00028274,30]
[388944586,1759529432682,-2000.0,0.00028664,7]
[388944588,1759529432691,-321.7216683,0.00028959,30]
[388944590,1759529432700,-467.3945575,0.00028959,30]
[388944592,1759529432710,-1195.3630663,0.00028959,30]
[388944594,1759529432719,-584.6894659,0.00028959,30]
[388944596,1759529432729,-178.25,0.0002897,21]
[388944598,1759529432738,-2671.12,0.0002897,10]
[388944600,1759529432747,-2225.93,0.0002897,10]
[388944601,1759529432756,-173.828921,0.00028973,2]
[388944603,1759529432766,-500.0,0.00028973,2]
[388944604,1759529432775,-500.0,0.00028973,2]
[388944606,1759529432785,-500.0,0.00028973,2]
[388944607,1759529432794,-500.0,0.00028973,2]
[388944608,1759529432803,-500.0,0.00028973,2]
[388944609,1759529432812,-500.0,0.00028973,2]
[388944610,1759529432822,-500.0,0.00028973,2]
[388944611,1759529432831,-500.0,0.00028973,2]
[388944612,1759529432840,-500.0,0.00028973,2]
[388944613,1759529432848,-500.0,0.00028973,2]
[388944614,1759529432858,-500.0,0.00028973,2]
[388944615,1759529432867,-500.0,0.00028973,2]
[388944616,1759529432876,-500.0,0.00028973,2]
[388944617,1759529432887,-500.0,0.00028973,2]
[388944618,1759529432895,-500.0,0.00028973,2]
[388944619,1759529432904,-500.0,0.00028973,2]
[388944620,1759529432913,-500.0,0.00028973,2]
[388944621,1759529432922,-500.0,0.00028973,2]
[388944622,1759529432932,-453.99757021,0.00028973,2]
[388944623,1759529432941,-500.0,0.00028973,2]
[388944624,1759529432950,-500.0,0.00028973,2]
[388944625,1759529432960,-284.11283238,0.00028979,2]
[388944626,1759529432971,-509.57449934,0.00028979,2]
[388944627,1759529432980,-26563.99958545,0.0002898,2]
[388944631,1759529438334,-500.0,0.00028973,2]
[388944632,1759529438345,-500.0,0.00028973,2]
[388944633,1759529438354,-500.0,0.00028973,2]
[388944634,1759529438363,-87.58671605,0.00028973,2]
[388944635,1759529438374,-412.41328395,0.00028973,2]
[388944636,1759529438384,-500.0,0.00028973,2]
[388944637,1759529438393,-500.0,0.00028973,2]
[388944638,1759529438402,-500.0,0.00028973,2]
[388944639,1759529438411,-500.0,0.00028973,2]
[388944640,1759529438421,-500.0,0.00028973,2]
[388944641,1759529438430,-500.0,0.00028973,2]
[388944642,1759529438439,-500.0,0.00028973,2]
[388944643,1759529438448,-500.0,0.00028973,2]
[388944644,1759529438458,-500.0,0.00028973,2]
[388944645,1759529438471,-205.52494019,0.00028973,2]
[388944646,1759529438481,-150945.18247755,0.0002898,2]
[388944647,1759529438492,-100000.0,0.0002899,2]
[388944648,1759529438502,-160.0,0.00029096,2]
[388944649,1759529438512,-358.943391,0.00029128,2]
[388944650,1759529438521,-150.0,0.00029505,2]
[388944651,1759529438531,-938.0,0.00029505,2]
[388944652,1759529438540,-500.0,0.00029514,5]
[388944653,1759529438551,-168.0,0.00029743,7]
[388944654,1759529438560,-306.0,0.00029753,30]
[388944655,1759529438570,-1000.0,0.000298,90]
[388944656,1759529438579,-266263.773094,0.0002987,2]
[388944657,1759529438589,-500.0,0.00029873,5]
[388944658,1759529438599,-466.43510459,0.00029873,5]
[388944659,1759529438607,-251937.51850797,0.0002988,2]
[388944660,1759529438802,-516.59118003,0.0002988,2]
[388944712,1759529443581,-410.0,0.00028019,2]
[388944713,1759529443590,-3603.6860557,0.00028683,2]
[388944769,1759529902243,160.0,0.00013699,2]
[388944770,1759529902639,260.0,0.00014247,2]
[388944859,1759530632665,-5000.0,0.00019019,2]
[388944860,1759530632675,-100.0,0.00019999,2]
[388944862,1759530632767,-185.08,0.00019999,2]
[388944864,1759530632776,-285.08,0.00020099,2]
[388944866,1759530632785,-500.0,0.00021864,2]
[388944868,1759530632794,-361.274268,0.00022472,2]
[388944872,1759530632803,-181.0,0.00023,7]
[388944876,1759530632813,-1041.66666667,0.00023012,2]
[388944879,1759530632822,-1200.0,0.00023014,2]
[388944882,1759530632831,-500.0,0.00023015,2]
[388944885,1759530632840,-300.0,0.00023839,2]
[388944887,1759530632850,-300.0,0.00023839,2]
[388944889,1759530632860,-300.0,0.00023839,2]
[388944891,1759530632869,-1200.0,0.0002384,2]
[388944893,1759530632879,-500.0,0.0002384,2]
[388944895,1759530632888,-161.55528558,0.0002384,2]
[388944897,1759530632898,-500.0,0.0002384,2]
[388944899,1759530632906,-500.0,0.0002384,2]
[388944901,1759530632916,-500.0,0.0002384,2]
[388944903,1759530632925,-500.0,0.0002384,2]
[388944905,1759530632934,-500.0,0.0002384,2]
[388944907,1759530632943,-500.0,0.0002384,2]
[388944909,1759530632954,-500.0,0.0002384,2]
[388944911,1759530632963,-500.0,0.0002384,2]
[388944913,1759530632973,-620.55249402,0.0002384,2]
[388944915,1759530632982,-500.0,0.0002384,2]
[388944917,1759530632991,-500.0,0.0002384,2]
[388944919,1759530633000,-500.0,0.0002384,2]
[388944921,1759530633009,-500.0,0.0002384,2]
[388944923,1759530633019,-500.0,0.0002384,2]
[388944925,1759530633028,-36224.2257936,0.00023841,2]
[388945105,1759530640521,-1117.74283683,0.00023841,2]
[388945117,1759530640620,-911.92385235,0.00023841,2]
[388945119,1759530640631,-160.0,0.00023842,2]
[388945121,1759530640641,-500.0,0.00024226,2]
[388945123,1759530640650,-157.988766,0.00024618,2]
[388945125,1759530640660,-1000.0,0.00024618,2]
[388945127,1759530640669,-512.11223418,0.00025,2]
[388945129,1759530640680,-656.47403839,0.00025,2]
[388945131,1759530640689,-1680.0,0.00025099,2]
[388945133,1759530640699,-500.0,0.00025502,2]
[388945135,1759530640708,-420.0,0.00025856,2]
[388945137,1759530640717,-1680.0,0.00025857,2]
[388945139,1759530640727,-155.188083,0.00025962,26]
[388945141,1759530640736,-155.188083,0.00026456,26]
[388945143,1759530640745,-500.0,0.00026777,2]
[388945145,1759530640755,-155.188083,0.0002695,26]
[388945147,1759530640764,-178.251,0.00027235,16]
[388945149,1759530640773,-2106.6,0.0002788,10]
[388945151,1759530640782,-1755.5,0.0002788,10]
[388945153,1759530640792,-428.41654335,0.00027889,2]
[388945155,1759530640802,-198.87898267,0.00027889,2]
[388945157,1759530640811,-17752.5901907,0.0002789,2]
[388945187,1759530643679,-234.04758945,0.00023842,2]
[388945188,1759530643689,-113892.18147695,0.0002789,2]
[388945189,1759530643702,-8823.28572851,0.0002789,2]
[388945190,1759530643714,-20768.40068442,0.0002789,2]
[388945191,1759530643731,-227602.45928766,0.0002789,2]
[388945192,1759530643741,-500.0,0.00027973,5]
[388945193,1759530643750,-500.0,0.00027973,5]
[388945194,1759530643761,-152.43,0.0002798,3]
[388945195,1759530643771,-2527.92,0.0002798,10]
[388945196,1759530643781,-151.0,0.0002798,3]
[388945197,1759530643791,-49066.01007095,0.0002799,2]
[388945198,1759530643801,-266263.773094,0.0002799,2]
[388945199,1759530643810,-151.0,0.00028,7]
[388945200,1759530643820,-151.0978358,0.00028,2]
[388945201,1759530643829,-166.611396,0.00028,7]